bitfinex-derivatives/quotes_SOLF0:USTF0_20250923
["timestamp","ask_amount","ask_price","bid_price","bid_amount"]
[1758617615556,3.73087212,220.1,220.04,11.4373]
[1758617615757,7.37,220.12,220.04,11.4373]
[1758617616052,3.73087212,220.11,220.04,7.35]
[1758617616258,11.10087212,220.1,220.04,7.35]
[1758617616451,7.37,220.1,220.04,7.35]
[1758617618356,3.73134662,220.09,220.03,7.35]
[1758617618546,7.37,220.1,220.03,7.35]
[1758617618750,3.73134662,220.09,220.03,7.35]
[1758617618955,7.37,220.1,220.03,7.35]
[1758617619353,3.73144459,220.09,220.03,7.35]
[1758617619554,7.37,220.1,220.03,7.35]
[1758617619754,3.73144686,220.09,220.03,7.35]
[1758617620056,7.37,220.1,220.03,7.35]
[1758617620257,3.73137817,220.09,220.03,7.35]
[1758617620556,7.37,220.1,220.03,7.35]
[1758617620760,3.73155138,220.09,220.03,7.35]
[1758617620951,7.37,220.1,220.03,7.35]
[1758617621257,3.73155176,220.09,220.03,7.35]
[1758617621557,7.37,220.1,220.03,7.35]
[1758617621856,3.73165551,220.09,220.03,7.35]
[1758617622054,7.37,220.1,220.03,7.35]
[1758617622358,3.7315765,220.09,220.03,7.35]
[1758617622558,7.37,220.1,220.03,7.35]
[1758617622758,3.73175869,220.09,220.03,7.35]
[1758617622960,7.37,220.1,220.03,7.35]
[1758617623158,3.73175793,220.09,220.03,7.35]
[1758617623351,7.37,220.1,220.03,7.35]
[1758617623553,11.10176129,220.09,220.04,4.0873]
[1758617623753,7.37,220.09,220.05,7.35]
[1758617625960,7.37,220.09,220.04,4.0873]
[1758617626461,7.37,220.09,220.05,7.35]
[1758617628662,110.78,220.15,220.05,7.35]
[1758617628663,7.37,220.15,220.05,7.35]
[1758617628862,3.68532181,220.14,220.05,7.35]
[1758617629059,7.37,220.15,220.09,4.0862]
[1758617629451,7.37,220.15,220.1,7.35]
[1758617630162,7.37,220.15,220.09,11.4362]
[1758617631858,7.37,220.15,220.11,4.086]
[1758617632163,16.94,220.18,220.12,7.35]
[1758617632659,16.94,220.18,220.13,4.0856]
[1758617632859,7.37,220.2,220.14,7.35]
[1758617646774,46.164,220.22,220.09,7.38]
[1758617646775,7.56,220.18,220.09,7.38]
[1758617647774,7.56,220.18,220.09,11.4662]
[1758617647976,7.56,220.18,220.1,7.38]
[1758617650569,7.56,220.18,220.01,7.38]
[1758617650771,63.5435,220.17,220.01,7.38]
[1758617650973,7.56,220.16,220.01,7.38]
[1758617651677,4.086,220.11,220.03,4.0873]
[1758617651873,7.56,220.1,220.04,7.38]
[1758617652380,7.56,220.08,220.0,7.38]
[1758617659882,63.5648,220.1,219.96,6.93]
[1758617660076,7.2,220.05,219.87,63.6295]
[1758617660278,63.5691,220.08,219.88,6.93]
[1758617660279,7.2,220.07,219.88,6.93]
[1758617660482,18.14,220.06,219.88,6.93]
[1758617660684,7.2,220.05,219.88,6.93]
[1758617661779,4.0875,220.03,219.92,4.0895]
[1758617661979,7.2,220.02,219.93,6.93]
[1758617664184,4.0879,220.01,219.93,6.93]
[1758617664387,7.2,220.0,219.9,6.93]
[1758617665790,4.0882,219.99,219.9,6.93]
[1758617665991,7.2,219.98,219.9,6.93]
[1758617667398,7.2,220.02,219.92,6.93]
[1758617667696,7.2,220.07,219.92,6.93]
[1758617668594,7.2,220.05,219.95,6.93]
[1758617669896,7.2,220.03,219.95,6.93]
[1758617674299,7.2,220.03,219.96,4.0888]
[1758617674506,46.8867,220.08,219.94,63.6081]
[1758617674700,53.9167,220.08,219.95,7.69]
[1758617675299,7.03,220.05,219.95,11.7789]
[1758617675503,4.0869,220.06,219.95,11.7789]
[1758617675900,7.03,220.05,219.95,11.7789]
[1758617676106,4.0873,220.05,219.95,11.7789]
[1758617676305,7.03,220.04,219.95,11.7789]
[1758617677703,7.03,220.04,219.96,7.69]
[1758617677903,7.03,220.04,219.98,7.69]
[1758617683308,7.03,220.04,219.95,7.69]
[1758617683811,7.03,220.04,219.95,11.7788]
[1758617686006,7.03,220.04,219.95,7.69]
[1758617687812,11.1167,220.07,219.95,7.69]
[1758617688923,11.1167,220.07,219.99,11.7782]
[1758617691517,7.03,220.07,220.0,4.0879]
[1758617691718,42.8,220.08,220.01,7.69]
[1758617692923,42.8,220.08,220.02,4.0876]
[1758617693526,49.83,220.08,220.01,7.69]
[1758617698523,49.83,220.08,219.99,4.088]
[1758617699533,49.83,220.08,220.0,7.69]
[1758617701931,42.8,220.08,219.99,4.088]
[1758617702235,7.04,220.07,219.99,11.568]
[1758617704834,7.04,220.07,220.0,4.0879]
[1758617705829,7.04,220.07,220.01,4.0877]
[1758617715036,7.04,220.07,220.0,7.48]
[1758617718038,7.04,220.07,220.0,11.568]
[1758617722444,7.04,220.07,220.0,7.48]
[1758617728450,3.6410165,220.06,220.0,7.48]
[1758617728650,7.04,220.07,220.0,7.48]
[1758617728850,3.64101725,220.06,220.0,7.48]
[1758617729051,7.04,220.07,220.0,7.48]
[1758617729253,3.64101725,220.06,220.0,7.48]
[1758617729452,7.04,220.07,220.0,7.48]
[1758617729652,3.64176063,220.06,220.0,7.48]
[1758617729952,7.04,220.07,220.0,7.48]
[1758617730147,3.64176063,220.06,220.0,7.48]
[1758617730346,7.04,220.07,220.0,7.48]
[1758617730548,3.64268883,220.06,220.0,7.48]
[1758617730748,7.04,220.07,220.0,7.48]
[1758617730949,3.64268883,220.06,220.0,7.48]
[1758617731151,7.04,220.07,220.0,7.48]
[1758617731357,3.64268883,220.06,220.0,4.0878]
[1758617731667,42.8,220.08,220.01,7.02]
[1758617731964,3.64363474,220.07,220.01,7.02]
[1758617732153,3.64363474,220.06,219.98,7.02]
[1758617732348,42.8,220.08,219.98,7.02]
[1758617732654,3.6443547,220.07,219.98,7.02]
[1758617732854,3.6443547,220.06,220.02,7.02]
[1758617733051,50.45,220.08,220.02,7.02]
[1758617733357,3.64435395,220.07,220.01,4.0877]
[1758617733562,3.64435395,220.06,220.01,4.0877]
[1758617733758,3.64435395,220.05,220.02,7.02]
[1758617734071,50.45,220.08,220.02,7.02]
[1758617734263,3.64480539,220.07,220.01,4.0877]
[1758617734462,7.65,220.12,220.03,7.02]
[1758617734761,3.64456778,220.11,220.03,7.02]
[1758617734961,7.65,220.15,220.03,7.02]
[1758617735162,3.64409758,220.14,220.03,7.02]
[1758617735356,3.64409758,220.13,220.03,7.02]
[1758617735559,3.64409758,220.12,220.07,4.0865]
[1758617735760,7.65,220.15,220.08,7.02]
[1758617735962,3.59635387,220.14,220.08,7.02]
[1758617736163,11.24635387,220.13,220.07,4.0865]
[1758617736362,11.24635387,220.12,220.07,4.0865]
[1758617736563,7.65,220.12,220.07,4.0865]
[1758617737364,7.65,220.12,220.08,7.02]
[1758617737561,7.65,220.17,220.09,4.0863]
[1758617737762,3.59353582,220.16,220.1,7.02]
[1758617738066,3.59353582,220.15,220.1,7.02]
[1758617738261,11.24353582,220.14,220.1,7.02]
[1758617738563,7.65,220.14,220.09,4.0863]
[1758617738763,7.65,220.14,220.1,7.02]
[1758617739763,7.65,220.17,220.1,7.02]
[1758617740065,7.65,220.15,220.03,7.02]
[1758617740364,7.65,220.13,220.03,7.02]
[1758617741866,7.65,220.13,220.05,11.107]
[1758617742461,7.65,220.13,220.05,7.02]
[1758617742664,7.65,220.11,220.05,7.02]
[1758617746471,7.65,220.11,220.05,11.1069]
[1758617748162,7.65,220.11,220.05,7.02]
[1758617748869,7.65,220.14,220.05,7.02]
[1758617749071,3.58850592,220.13,220.05,7.02]
[1758617749267,7.65,220.14,220.05,7.02]
[1758617749468,3.58837973,220.13,220.05,7.02]
[1758617749670,7.65,220.14,220.05,7.02]
[1758617749865,3.58837973,220.13,220.05,7.02]
[1758617750172,7.65,220.14,220.05,11.1069]
[1758617750373,3.588339,220.13,220.05,4.0869]
[1758617750570,7.65,220.14,220.06,7.02]
[1758617750770,3.58828365,220.13,220.06,7.02]
[1758617750967,7.65,220.14,220.06,7.02]
[1758617751268,3.58828403,220.13,220.06,7.02]
[1758617751574,7.65,220.14,220.06,7.02]
[1758617751770,3.58817611,220.13,220.06,7.02]
[1758617752072,7.65,220.14,220.06,7.02]
[1758617752272,7.65,220.12,220.06,7.02]
[1758617757776,7.65,220.13,220.03,11.1074]
[1758617757971,4.0856,220.14,220.03,11.1074]
[1758617758278,7.65,220.12,220.03,11.1074]
[1758617758466,7.65,220.12,220.04,7.02]
[1758617759173,7.65,220.12,220.04,11.1071]
[1758617760575,7.65,220.12,220.05,6.97]
[1758617760879,7.65,220.12,220.06,4.0869]
[1758617763875,7.65,220.12,220.07,4.0866]
[1758617764283,7.65,220.12,220.08,6.97]
[1758617764582,7.65,220.12,220.07,4.0866]
[1758617764770,7.65,220.12,220.08,6.97]
[1758617766185,7.18,220.15,220.08,6.97]
[1758617766378,3.57349802,220.14,220.04,4.0871]
[1758617766583,7.18,220.13,220.05,6.97]
[1758617767677,11.2658,220.13,220.05,6.97]
[1758617767878,7.18,220.15,220.02,11.0576]
[1758617768079,3.57427028,220.14,220.02,6.97]
[1758617768383,10.75427028,220.13,220.02,6.97]
[1758617768675,7.18,220.13,220.02,6.97]
[1758617769986,7.18,220.1,220.03,4.0873]
[1758617773281,7.18,220.1,220.02,6.97]
[1758617776585,4.0864,220.09,220.02,6.97]
[1758617776888,7.09,220.08,220.02,6.97]
[1758617780389,7.09,220.08,220.02,4.0876]
[1758617780882,7.09,220.08,220.03,7.3]
[1758617781089,7.09,220.08,220.02,4.0876]
[1758617781289,7.09,220.08,220.03,7.3]
[1758617781490,7.09,220.08,220.02,4.0876]
[1758617781885,7.09,220.13,220.04,4.0872]
[1758617782085,7.09,220.13,220.05,7.3]
[1758617782086,3.58012707,220.12,220.05,7.3]
[1758617782286,7.09,220.16,220.05,7.3]
[1758617782486,3.57968308,220.15,220.05,7.3]
[1758617782688,3.57968308,220.14,220.05,7.3]
[1758617782884,3.57968308,220.13,220.05,7.3]
[1758617783080,7.09,220.16,220.05,7.3]
[1758617783287,3.58270206,220.15,220.05,7.3]
[1758617783490,3.58270206,220.14,220.05,7.3]
[1758617783688,3.58270206,220.13,220.05,7.3]
[1758617783888,7.09,220.16,220.09,4.0863]
[1758617784088,3.58286442,220.15,220.09,4.0863]
[1758617784390,7.09,220.13,220.1,7.3]
[1758617785195,7.09,220.17,220.1,7.3]
[1758617785394,3.58296982,220.16,220.1,7.3]
[1758617785689,3.58296982,220.15,220.1,7.3]
[1758617785895,3.58296982,220.14,220.1,7.3]
[1758617786086,10.67296982,220.13,220.1,7.3]
[1758617786394,7.09,220.15,220.05,7.3]
[1758617786595,7.09,220.13,220.05,7.3]
[1758617786893,7.09,220.11,220.05,7.3]
[1758617788694,7.09,220.11,220.05,11.3871]
[1758617792193,7.09,220.11,220.05,7.3]
[1758617792797,11.1761,220.11,220.05,7.3]
[1758617795504,7.45,220.09,220.05,7.3]
[1758617795800,4.0861,220.11,220.05,7.3]
[1758617795998,3.58366499,220.1,220.05,7.3]
[1758617796198,7.45,220.1,220.05,7.3]
[1758617796393,4.0861,220.11,220.05,7.3]
[1758617796700,7.45,220.09,220.02,11.1575]
[1758617797493,7.45,220.09,220.03,7.07]
[1758617808206,7.45,220.09,220.03,11.1573]
[1758617808406,7.45,220.13,220.01,7.07]
[1758617808703,7.45,220.11,220.01,7.07]
[1758617809005,3.58318558,220.1,220.01,7.07]
[1758617809206,7.45,220.11,220.01,7.07]
[1758617809408,3.5833283,220.1,220.01,7.07]
[1758617809608,7.45,220.11,220.01,7.07]
[1758617809809,3.5833283,220.1,220.04,4.0871]
[1758617810008,7.45,220.11,220.04,11.1571]
[1758617810207,3.5833283,220.1,220.04,11.1571]
[1758617810408,7.45,220.11,220.04,11.1571]
[1758617810706,3.58348919,220.1,220.04,11.1571]
[1758617810903,7.45,220.11,220.04,11.1571]
[1758617811209,3.58348919,220.1,220.04,11.1571]
[1758617811505,7.45,220.11,220.04,11.1571]
[1758617811705,3.58374065,220.1,220.04,11.1571]
[1758617811906,7.45,220.11,220.04,11.1571]
[1758617812100,3.58366847,220.1,220.04,11.1571]
[1758617812306,7.45,220.11,220.04,11.1571]
[1758617812507,3.58368145,220.1,220.04,11.1571]
[1758617812809,7.45,220.11,220.04,11.1571]
[1758617813005,3.58368145,220.1,220.04,11.1571]
[1758617813201,7.45,220.11,220.04,11.1571]
[1758617813398,3.58847357,220.1,220.04,11.1571]
[1758617813601,7.45,220.11,220.04,11.1571]
[1758617813805,3.58847357,220.1,220.04,11.1571]
[1758617814003,7.45,220.11,220.04,11.1571]
[1758617814306,11.03847357,220.1,220.07,7.07]
[1758617814506,4.0855,220.14,220.07,7.07]
[1758617814706,11.03849224,220.13,220.07,7.07]
[1758617814899,4.0855,220.14,220.07,7.07]
[1758617814900,3.58849224,220.12,220.07,7.07]
[1758617815105,7.45,220.1,220.07,7.07]
[1758617815405,7.45,220.13,220.07,7.07]
[1758617815607,3.5885144,220.12,220.06,11.1569]
[1758617815910,7.45,220.1,220.06,11.1569]
[1758617816109,4.0855,220.14,220.06,11.1569]
[1758617816304,7.45,220.12,220.06,11.1569]
[1758617816509,3.58854028,220.13,220.06,11.1569]
[1758617816510,3.58854028,220.11,220.06,11.1569]
[1758617816709,7.45,220.09,220.06,11.1569]
[1758617818514,7.45,220.09,220.06,7.07]
[1758617818714,7.45,220.12,220.06,7.07]
[1758617818912,3.58857007,220.11,220.06,7.07]
[1758617819214,7.45,220.09,220.02,7.07]
[1758617820910,7.45,220.09,220.03,4.0875]
[1758617821110,7.45,220.09,220.02,7.07]
[1758617821412,7.45,220.09,220.02,11.1575]
[1758617821611,7.45,220.09,220.03,7.53]
[1758617827120,7.45,220.09,220.03,11.6173]
[1758617832335,7.54,220.12,220.05,7.53]
[1758617832534,3.59101717,220.11,220.05,7.53]
[1758617832832,3.59101717,220.1,220.05,4.087]
[1758617833032,7.54,220.12,220.06,7.53]
[1758617833227,3.59101491,220.11,220.05,4.087]
[1758617833427,3.59101491,220.1,220.06,7.53]
[1758617833632,7.54,220.14,220.06,7.53]
[1758617833931,7.54,220.12,220.06,7.53]
[1758617834131,3.59113314,220.11,220.06,7.53]
[1758617834333,11.13113314,220.1,220.06,7.53]
[1758617834526,7.54,220.1,220.06,7.53]
[1758617834727,7.54,220.1,220.05,4.087]
[1758617835033,7.54,220.1,220.06,7.53]
[1758617835228,7.54,220.1,220.05,4.087]
[1758617835634,7.54,220.1,220.06,7.53]
[1758617836230,7.54,220.1,220.05,4.087]
[1758617836725,7.54,220.14,220.06,7.53]
[1758617836930,7.54,220.12,220.06,7.53]
[1758617837130,11.13155589,220.11,220.05,11.617]
[1758617837326,10.70155589,220.1,220.05,4.087]
[1758617837531,7.11,220.1,220.06,7.04]
[1758617837834,7.11,220.1,220.05,4.087]
[1758617838432,7.11,220.1,220.06,7.04]
[1758617838634,7.11,220.1,220.05,4.087]
[1758617839234,3.59210995,220.09,220.05,4.087]
[1758617839434,7.11,220.1,220.05,4.087]
[1758617839635,3.59209109,220.09,220.06,7.04]
[1758617839841,7.11,220.1,220.06,7.04]
[1758617840046,3.59209109,220.09,220.05,4.087]
[1758617840348,7.11,220.1,220.05,4.087]
[1758617840649,3.59231292,220.09,220.06,7.04]
[1758617840948,7.11,220.1,220.05,4.087]
[1758617841145,3.59231292,220.09,220.05,4.087]
[1758617841346,7.11,220.09,220.06,7.04]
[1758617841542,7.11,220.09,220.05,4.087]
[1758617842348,7.11,220.09,220.06,7.04]
[1758617842950,4.0856,220.14,220.06,7.04]
[1758617843144,10.70672407,220.13,220.06,7.04]
[1758617843350,7.11,220.11,220.06,7.04]
[1758617843551,7.11,220.09,220.06,7.04]
[1758617844050,7.11,220.09,220.05,4.087]
[1758617844244,7.11,220.09,220.06,7.04]
[1758617844449,7.11,220.09,220.05,4.087]
[1758617844650,7.11,220.09,220.06,7.04]
[1758617844953,7.11,220.09,220.05,4.087]
[1758617845347,7.11,220.09,220.06,7.04]
[1758617847750,7.11,220.14,220.08,7.04]
[1758617847945,3.59624974,220.13,220.08,7.04]
[1758617848143,3.59624974,220.12,220.08,11.1264]
[1758617848348,7.11,220.14,220.09,7.04]
[1758617848550,10.70521045,220.13,220.09,7.04]
[1758617848751,3.59521045,220.12,220.09,7.04]
[1758617849046,7.11,220.17,220.09,7.04]
[1758617849346,7.11,220.15,220.09,7.04]
[1758617849547,3.59478162,220.14,220.08,4.0864]
[1758617849752,7.11,220.15,220.09,7.04]
[1758617849952,3.59340865,220.14,220.08,4.0864]
[1758617850154,7.11,220.15,220.09,7.04]
[1758617850348,7.11,220.18,220.09,7.04]
[1758617850554,3.59202731,220.17,220.09,7.04]
[1758617850749,7.11,220.18,220.12,4.0858]
[1758617851256,7.11,220.18,220.13,6.97]
[1758617851654,7.11,220.18,220.12,4.0858]
[1758617851955,350.45,220.22,220.13,6.97]
[1758617852252,10.61940869,220.21,220.13,6.97]
[1758617852454,3.58940869,220.2,220.15,6.97]
[1758617852755,3.58940869,220.19,220.15,6.97]
[1758617852950,7.03,220.19,220.15,6.97]
[1758617853548,7.03,220.19,220.14,4.0854]
[1758617853853,7.03,220.19,220.15,6.97]
[1758617854046,7.03,220.19,220.14,4.0854]
[1758617854250,7.03,220.19,220.15,6.97]
[1758617854451,7.03,220.19,220.14,4.0854]
[1758617855550,7.03,220.19,220.15,6.97]
[1758617856058,7.03,220.21,220.15,6.97]
[1758617856258,7.03,220.19,220.15,6.97]
[1758617856460,7.03,220.21,220.15,6.97]
[1758617856660,3.58296411,220.2,220.15,6.97]
[1758617856853,7.03,220.21,220.15,6.97]
[1758617857053,343.42,220.22,220.15,6.97]
[1758617857054,3.58296411,220.2,220.15,6.97]
[1758617857249,7.03,220.21,220.15,6.97]
[1758617857451,7.03,220.19,220.15,6.97]
[1758617857655,7.03,220.21,220.15,6.97]
[1758617857856,3.58214908,220.2,220.15,6.97]
[1758617858159,7.03,220.21,220.15,6.97]
[1758617859955,11.1138,220.24,220.15,6.97]
[1758617860154,3.58005275,220.23,220.15,6.97]
[1758617860358,11.1138,220.24,220.15,6.97]
[1758617860560,3.57904013,220.23,220.15,6.97]
[1758617860862,11.1138,220.24,220.15,6.97]
[1758617861162,3.57903862,220.23,220.15,6.97]
[1758617861461,7.03,220.24,220.15,6.97]
[1758617861666,7.03,220.22,220.15,6.97]
[1758617869161,7.03,220.22,220.15,4.0851]
[1758617869367,44.67,220.3,220.14,6.97]
[1758617869666,7.03,220.28,220.14,6.97]
[1758617869863,3.57370447,220.27,220.14,6.97]
[1758617870169,7.03,220.28,220.16,6.97]
[1758617870665,7.03,220.28,220.21,6.97]
[1758617880863,70.8089,220.29,220.15,7.24]
[1758617881069,7.3,220.27,220.15,7.24]
[1758617881768,4.0836,220.25,220.15,11.3251]
[1758617882072,11.3836,220.25,220.16,7.24]
[1758617882968,7.3,220.27,220.17,4.0848]
[1758617883274,7.3,220.27,220.18,7.24]
[1758617890171,7.3,220.27,220.2,7.24]
[1758617892378,3.66600317,220.26,220.2,7.24]
[1758617892577,7.3,220.27,220.2,7.24]
[1758617892770,3.66600317,220.26,220.2,7.24]
[1758617892971,7.3,220.27,220.2,7.24]
[1758617893173,3.66600317,220.26,220.2,7.24]
[1758617893372,7.3,220.27,220.2,7.24]
[1758617893677,3.66723606,220.26,220.2,7.24]
[1758617893883,3.66723606,220.26,220.12,89.92927202]
[1758617893884,7.3,220.27,220.17,7.24]
[1758617894069,38.43056771,220.3,220.17,7.24]
[1758617894070,7.3,220.25,220.17,7.24]
[1758617894274,7.3,220.23,220.17,7.24]
[1758617895580,3.67020802,220.22,220.17,7.24]
[1758617895781,7.3,220.21,220.15,7.24]
[1758617922617,7.3,220.21,220.16,4.085]
[1758617922820,7.3,220.21,220.17,6.94]
[1758617923119,7.3,220.21,220.16,4.085]
[1758617923320,7.3,220.21,220.17,6.94]
[1758617923524,7.3,220.21,220.16,4.085]
[1758617923817,4.0834,220.25,220.16,11.025]
[1758617924018,7.56,220.23,220.16,11.025]
[1758617924220,3.58894382,220.22,220.16,11.025]
[1758617925920,7.56,220.23,220.16,11.025]
[1758617926116,3.58937877,220.22,220.16,4.085]
[1758617926423,7.56,220.24,220.16,6.94]
[1758617926722,7.56,220.22,220.16,6.94]
[1758617928117,11.14993606,220.21,220.14,4.0854]
[1758617928320,7.56,220.21,220.15,6.94]
[1758617937329,3.63402303,220.2,220.14,4.0854]
[1758617937529,7.56,220.21,220.15,6.94]
[1758617937725,3.63409518,220.2,220.15,6.94]
[1758617938029,7.56,220.22,220.15,6.94]
[1758617938229,3.63536941,220.21,220.15,6.94]
[1758617938430,3.63536941,220.2,220.15,6.94]
[1758617939130,3.63536941,220.2,220.14,4.0854]
[1758617939325,7.56,220.22,220.15,6.94]
[1758617939526,3.63540812,220.21,220.15,6.94]
[1758617939725,3.63540812,220.2,220.15,6.94]
[1758617939927,7.56,220.2,220.14,4.0854]
[1758617940325,7.56,220.2,220.15,6.94]
[1758617940629,7.56,220.2,220.14,4.0854]
[1758617940830,4.0838,220.23,220.14,4.0854]
[1758617941128,7.48,220.21,220.15,7.12]
[1758617941330,3.6354514,220.2,220.14,4.0854]
[1758617941529,7.48,220.22,220.15,7.12]
[1758617941731,3.6354427,220.21,220.15,7.12]
[1758617941920,3.6354427,220.2,220.14,4.0854]
[1758617942123,7.48,220.21,220.15,7.12]
[1758617945935,3.63544425,220.2,220.15,7.12]
[1758617946136,7.48,220.22,220.15,7.12]
[1758617946434,3.63544767,220.21,220.15,7.12]
[1758617946628,11.11544767,220.2,220.14,4.0854]
[1758617946828,7.48,220.2,220.15,7.12]
[1758617947132,7.48,220.2,220.14,4.0854]
[1758617947424,7.48,220.2,220.15,7.12]
[1758617947629,7.48,220.22,220.15,7.12]
[1758617947829,3.63545494,220.21,220.15,7.12]
[1758617948027,7.48,220.19,220.12,11.2058]
[1758617948226,5.06531312,220.25,220.12,11.2058]
[1758617948227,4.0842,220.21,220.12,11.2058]
[1758617948531,7.48,220.19,220.12,7.12]
[1758617948736,7.48,220.17,220.12,7.12]
[1758617948927,3.63587342,220.16,220.12,7.12]
[1758617949132,11.11587342,220.15,220.08,7.12]
[1758617949333,3.63587342,220.14,220.08,7.12]
[1758617949529,7.48,220.17,220.08,7.12]
[1758617949731,3.63348425,220.16,220.08,7.12]
[1758617949929,3.23662642,220.15,220.08,7.12]
[1758617950133,3.23662642,220.14,220.08,7.12]
[1758617950334,3.23662642,220.13,220.08,7.12]
[1758617950534,3.23662642,220.12,220.08,7.12]
[1758617950734,7.48,220.17,220.08,7.12]
[1758617950937,6.86746344,220.16,220.09,7.12]
[1758617951138,3.23559563,220.15,220.09,7.12]
[1758617951438,3.23559563,220.14,220.09,7.12]
[1758617951736,3.23559563,220.13,220.09,7.12]
[1758617951932,7.48,220.17,220.09,7.12]
[1758617952128,6.86839613,220.16,220.09,7.12]
[1758617952331,3.23749968,220.15,220.09,7.12]
[1758617952538,3.23749968,220.14,220.08,4.0865]
[1758617952840,3.23749968,220.13,220.09,7.12]
[1758617953036,7.48,220.17,220.09,7.12]
[1758617953236,6.86677413,220.16,220.09,7.12]
[1758617953539,3.23679784,220.15,220.09,7.12]
[1758617953739,3.23679784,220.14,220.09,7.12]
[1758617953939,3.23679784,220.13,220.09,7.12]
[1758617954240,7.48,220.17,220.09,7.12]
[1758617954441,3.23564964,220.16,220.09,7.12]
[1758617954629,3.23564964,220.15,220.09,7.12]
[1758617954836,3.23564964,220.14,220.09,7.12]
[1758617955034,3.23564964,220.13,220.09,7.12]
[1758617955230,7.48,220.17,220.09,7.12]
[1758617955435,3.23516875,220.16,220.09,7.12]
[1758617955635,3.23516875,220.15,220.09,7.12]
[1758617955840,3.23516875,220.14,220.08,4.0865]
[1758617956042,3.23516875,220.13,220.09,7.12]
[1758617956240,7.48,220.16,220.09,7.12]
[1758617956441,3.23473618,220.15,220.09,7.12]
[1758617956636,7.48,220.16,220.09,7.12]
[1758617956637,3.23473618,220.14,220.09,7.66]
[1758617956941,3.23473618,220.13,220.09,7.66]
[1758617957141,6.97,220.16,220.09,7.66]
[1758617957343,3.23473569,220.15,220.09,7.66]
[1758617957536,3.23473569,220.14,220.08,4.0865]
[1758617957736,6.97,220.16,220.09,7.66]
[1758617957937,3.23434495,220.15,220.09,7.66]
[1758617958134,3.23434495,220.14,220.08,4.0865]
[1758617958340,6.97,220.18,220.09,7.66]
[1758617958540,6.86087706,220.17,220.09,7.66]
[1758617958741,10.20399076,220.16,220.09,7.66]
[1758617958942,3.23399076,220.15,220.09,7.66]
[1758617959138,3.23399076,220.14,220.09,7.66]
[1758617959342,6.97,220.18,220.09,7.66]
[1758617959540,6.97,220.16,220.09,7.66]
[1758617959741,3.233669,220.15,220.09,7.66]
[1758617959942,10.203669,220.14,220.09,7.66]
[1758617960142,6.97,220.18,220.09,7.66]
[1758617960447,6.97,220.16,220.09,7.66]
[1758617960646,3.233669,220.15,220.09,7.66]